bitfinex/quotes_SOLUSD_20260211
["timestamp","ask_amount","ask_price","bid_price","bid_amount"]
[1770789132914,3.65586527,81.98,81.961,12.20083978]
[1770789133192,0.5389682,81.979,81.956,12.72826349]
[1770789133502,0.5389682,81.979,81.957,0.52663473]
[1770789133701,0.5389682,81.979,81.96,12.20102195]
[1770789135292,0.5389682,81.979,81.95,0.1]
[1770789135293,12.19839469,81.978,81.95,0.1]
[1770789135500,0.5389682,81.969,81.95,0.1]
[1770789137214,0.5389682,81.969,81.95,0.62663473]
[1770789137617,0.5389682,81.975,81.953,0.52663473]
[1770789140106,3.65586527,81.98,81.955,0.52663473]
[1770789140501,0.49387588,81.979,81.955,0.52663473]
[1770789143037,0.49387588,81.979,81.95,0.1]
[1770789143038,3.66412361,81.99,81.957,0.5429394]
[1770789143323,3.66412361,82.04,81.956,12.20166918]
[1770789143324,0.49387588,82.009,81.971,0.5429394]
[1770789143620,0.49387588,81.999,81.971,0.5429394]
[1770789145132,0.49387588,81.999,81.97,3.66412361]
[1770789145133,0.49387588,81.999,81.973,0.49241358]
[1770789147318,0.49387588,81.999,81.975,0.49241358]
[1770789147938,0.53019408,82.021,81.981,0.49241358]
[1770789148128,0.53019408,82.021,81.98,3.66412361]
[1770789148129,3.66412361,82.02,81.991,0.49241358]
[1770789148633,0.53019408,82.019,81.991,0.49241358]
[1770789149208,0.53019408,82.017,81.991,0.49241358]
[1770789149422,0.53019408,82.017,81.987,12.19701275]
[1770789149608,0.53019408,82.017,81.991,12.19633339]
[1770789151023,0.53019408,82.017,81.992,12.19631183]
[1770789151435,0.53019408,82.017,81.974,30.4974748]
[1770789151436,0.53019408,82.009,81.981,12.1979483]
[1770789152021,0.53019408,82.009,81.982,0.49241358]
[1770789153540,0.53019408,82.008,81.982,0.49241358]
[1770789153835,0.53019408,82.015,81.984,0.49241358]
[1770789154841,0.53019408,82.023,81.991,0.49241358]
[1770789155441,4.19431769,82.02,81.991,0.49241358]
[1770789155831,0.53019408,82.02,81.993,0.49241358]
[1770789156738,4.19431769,82.02,81.993,0.49241358]
[1770789157344,0.53019408,82.029,81.993,0.49241358]
[1770789157926,0.53019408,82.029,81.995,0.49241358]
[1770789158147,0.53019408,82.029,82.001,0.49241358]
[1770789159343,0.53019408,82.029,82.003,0.49241358]
[1770789159538,0.53019408,82.027,82.003,0.49241358]
[1770789160339,0.53019408,82.029,82.003,0.49241358]
[1770789160843,0.53019408,82.039,82.003,0.49241358]
[1770789161043,3.66412361,82.03,82.003,0.49241358]
[1770789161221,0.53019408,82.029,82.003,0.49241358]
[1770789162238,0.53019408,82.029,82.004,12.19452709]
[1770789162438,0.53019408,82.029,82.004,12.68694067]
[1770789162639,0.53019408,82.029,82.005,0.49241358]
[1770789165340,0.53019408,82.027,82.004,12.68694067]
[1770789165544,0.53019408,82.027,82.005,0.49241358]
[1770789166243,0.53019408,82.027,82.004,12.19452709]
[1770789166244,0.53019408,82.027,81.999,0.49241358]
[1770789166839,0.53019408,82.027,82.001,12.19497323]
[1770789167840,0.53019408,82.019,81.995,12.19580095]
[1770789169950,0.53019408,82.009,81.98,4.15653719]
[1770789170129,3.66412361,82.02,81.985,0.51660459]
[1770789170440,0.50429535,82.02,81.991,0.51660459]
[1770789172254,0.50429535,82.019,81.993,0.51660459]
[1770789177066,0.50429535,82.034,82.0,3.66412361]
[1770789177268,0.50429535,82.034,82.001,0.51660459]
[1770789177440,0.50429535,82.029,82.001,0.51660459]
[1770789178256,0.50429535,82.029,82.002,12.19482451]
[1770789178464,0.50429535,82.019,81.998,0.51660459]
[1770789178758,0.50429535,82.009,81.978,0.51660459]
[1770789179058,0.50429535,82.009,81.984,12.19740029]
[1770789180252,0.50429535,82.009,81.988,12.19681525]
[1770789180556,0.50429535,82.009,81.989,0.51660459]
[1770789180756,0.50429535,82.015,81.989,0.51660459]
[1770789181566,0.50429535,82.037,82.001,0.51660459]
[1770789181863,3.66412361,82.02,81.991,0.51660459]
[1770789182153,0.50429535,82.019,81.991,0.51660459]
[1770789183138,0.50429535,82.019,81.993,0.51660459]
[1770789185759,0.50429535,82.025,81.995,0.51660459]
[1770789186139,0.50429535,82.025,81.994,12.19601434]
[1770789186140,0.50429535,82.044,82.011,0.51660459]
[1770789186566,0.50429535,82.059,82.021,0.51660459]
[1770789187149,0.50429535,82.059,82.031,0.51660459]
[1770789188067,0.50429535,82.059,82.033,0.51660459]
[1770789190566,0.50429535,82.059,82.035,0.51660459]
[1770789190760,3.66412361,82.07,82.035,0.51660459]
[1770789190761,0.50429535,82.068,82.035,0.51660459]
[1770789192650,0.50429535,82.066,82.037,0.51660459]
[1770789195950,0.50429535,82.066,82.039,0.51660459]
[1770789196157,0.50429535,82.066,82.041,0.51660459]
[1770789198076,0.50429535,82.059,82.032,12.19030598]
[1770789198456,0.50429535,82.059,82.033,0.51660459]
[1770789200055,0.50429535,82.059,82.034,12.19006753]
[1770789200363,0.50429535,82.059,82.035,0.52900913]
[1770789202581,0.50429535,82.059,82.037,0.52900913]
[1770789205464,0.50429535,82.059,82.005,37.86]
[1770789205465,0.50429535,82.059,82.024,0.50063481]
[1770789205664,0.50733394,82.049,82.019,0.50063481]
[1770789205976,0.50733394,82.049,82.023,12.19158037]
[1770789206159,12.18650223,82.058,82.003,0.50063481]
[1770789206160,0.50733394,82.029,82.003,0.50063481]
[1770789206966,0.50733394,82.051,82.021,0.50063481]
[1770789209167,12.18665074,82.057,82.004,42.68084483]
[1770789209168,0.50733394,82.049,82.023,0.50063481]
[1770789211368,0.50733394,82.049,82.025,0.50063481]
[1770789213786,0.50733394,82.058,82.027,0.50063481]
[1770789213973,0.50733394,82.058,82.031,0.50063481]
[1770789214279,0.50733394,82.057,82.031,0.50063481]
[1770789215774,3.65624833,82.06,82.023,0.50063481]
[1770789215775,0.50733394,82.055,82.023,0.50063481]
[1770789215975,3.65624833,82.04,82.011,0.50063481]
[1770789216171,0.50733394,82.039,82.011,0.50063481]
[1770789217265,0.50733394,82.039,82.015,0.50063481]
[1770789219184,0.50733394,82.039,82.017,0.50063481]
[1770789222588,0.50733394,82.039,82.019,0.50063481]
[1770789225774,0.50733394,82.039,82.02,12.19214825]
[1770789226887,0.50733394,82.039,82.017,0.50063481]
[1770789230097,0.50733394,82.039,82.018,12.19244556]
[1770789230595,0.50733394,82.039,82.018,12.69749092]
[1770789230993,0.50733394,82.039,82.012,12.19328892]
[1770789230994,0.50529225,82.038,82.012,12.19328892]
[1770789231293,0.50529225,82.019,81.993,30.49034378]
[1770789231485,3.65624833,82.03,81.997,0.50504536]
[1770789231705,0.50529225,82.029,81.997,0.50504536]
[1770789231888,0.50529225,82.029,82.001,0.50504536]
[1770789232594,0.50529225,82.029,82.003,0.50504536]
[1770789234680,0.50529225,82.034,82.005,0.50504536]
[1770789236599,0.50529225,82.033,82.007,0.50504536]
[1770789237995,0.50529225,82.029,82.007,0.50504536]
[1770789238586,0.50529225,82.029,81.997,0.50504536]
[1770789238787,0.50529225,82.029,82.001,0.50504536]
[1770789239394,0.50529225,82.036,82.001,0.50504536]
[1770789239804,0.50529225,82.029,82.001,0.50504536]
[1770789240599,0.50529225,82.039,82.003,0.50504536]
[1770789241008,0.50529225,82.029,82.003,0.50504536]
[1770789243098,0.50529225,82.029,82.005,0.50504536]
[1770789244408,0.50529225,82.029,82.006,12.19422969]
[1770789245194,0.50529225,82.029,82.006,12.69927505]
[1770789246201,0.50529225,82.029,82.007,0.50504536]
[1770789247092,4.16423588,82.04,82.002,0.50504536]
[1770789247410,0.50529225,82.045,82.002,0.50504536]
[1770789247799,0.50529225,82.039,82.002,0.50504536]
[1770789248304,0.50529225,82.039,82.004,0.50504536]
[1770789249189,3.65894363,82.03,82.003,12.1946758]
[1770789249396,0.50529225,82.019,81.994,12.19597392]
[1770789251010,0.50529225,82.019,81.994,12.70101928]
[1770789251413,0.50529225,82.019,81.988,0.50504536]
[1770789251607,0.50529225,82.019,81.982,0.50504536]
[1770789252710,0.50529225,82.042,82.001,0.50504536]
[1770789252912,0.50529225,82.039,82.001,0.50504536]
[1770789253602,0.50529225,82.039,82.003,0.50504536]
[1770789253913,0.50529225,82.039,82.011,0.50504536]
[1770789255914,0.50529225,82.039,82.02,4.16398899]
[1770789256099,0.50529225,82.045,82.021,0.50504536]
[1770789256298,0.50529225,82.068,82.031,0.50504536]
[1770789256916,0.50529225,82.068,82.04,3.65894363]
[1770789257502,0.50529225,82.068,82.041,0.50504536]
[1770789257702,0.50529225,82.068,82.051,0.50504536]
[1770789257918,0.50529225,82.074,82.051,0.50504536]
[1770789258715,0.50529225,82.074,82.06,3.65894363]
[1770789258918,0.50529225,82.088,82.061,0.50504536]
[1770789259813,0.50529225,82.088,82.06,3.65894363]
[1770789260018,0.50529225,82.086,82.061,12.18605671]
[1770789260211,0.53942804,82.079,82.045,0.54624125]
[1770789261502,0.53942804,82.079,82.044,12.18851662]
[1770789261705,0.53942804,82.079,82.045,0.54624125]
[1770789261928,0.53942804,82.077,82.045,0.54624125]
[1770789262410,0.53942804,82.077,82.044,12.18851662]
[1770789262605,0.53942804,82.077,82.041,0.54624125]
[1770789262800,0.53942804,82.077,82.044,12.18851676]
[1770789263813,0.53942804,82.069,82.042,12.18873974]
[1770789265402,0.49473598,82.059,82.033,12.19008276]
[1770789265819,0.49473598,82.059,82.037,12.18957604]
[1770789266023,0.49473598,82.067,82.041,0.52334311]
[1770789266406,0.49473598,82.067,82.042,0.52334311]
[1770789267218,0.49473598,82.065,82.042,0.52334311]
[1770789267615,0.49473598,82.065,82.036,12.18969887]
[1770789267935,12.18531425,82.066,82.03,3.65575496]
[1770789267936,0.49473598,82.059,82.03,12.19063226]
[1770789268413,0.49473598,82.059,82.03,12.71397537]
[1770789268926,0.49473598,82.059,82.03,12.19063226]
[1770789269936,0.49473598,82.059,82.024,12.19155369]
[1770789270134,0.49473598,82.059,82.025,0.52334311]
[1770789273332,0.49473598,82.058,82.025,0.52334311]
[1770789273719,0.49473598,82.049,82.019,0.52334311]
[1770789275135,0.49473598,82.049,82.027,0.52334311]
[1770789275335,0.49473598,82.049,82.022,0.52334311]
[1770789276227,0.49473598,82.055,82.022,0.52334311]
[1770789279932,0.49473598,82.053,82.024,0.52334311]
[1770789280131,0.49473598,82.053,82.021,0.52334311]
[1770789280428,0.49473598,82.049,82.022,12.71505054]
[1770789281035,0.49473598,82.049,82.023,0.52334311]
[1770789281954,0.49473598,82.049,82.024,12.7148968]
[1770789282253,0.49473598,82.049,82.025,0.52334311]
[1770789283747,0.49473598,82.059,82.031,0.52334311]
[1770789285637,0.49473598,82.049,82.013,0.52334311]
[1770789285842,0.49473598,82.039,82.016,0.52334311]
[1770789286150,0.49473598,82.049,82.02,0.52334311]
[1770789287849,12.18798751,82.048,82.02,0.52334311]
[1770789288054,0.49473598,82.047,82.02,0.52334311]
[1770789291852,0.51197377,82.045,82.02,0.52334311]
[1770789294641,0.51197377,82.043,82.02,0.52334311]
[1770789298858,3.65575496,82.04,82.011,12.19348623]
[1770789299055,0.51197377,82.039,82.011,12.19348623]
[1770789299940,0.51197377,82.039,82.012,0.49174849]
[1770789300947,3.65575496,82.04,81.991,0.49174849]
[1770789300948,0.51197377,82.019,81.991,0.49174849]
[1770789301662,0.51197377,82.019,81.992,0.49174849]
[1770789303159,0.51197377,82.019,81.996,12.19557677]
[1770789303362,0.51197377,82.009,81.981,0.49174849]
[1770789303958,0.51197377,82.009,81.973,30.49756172]
[1770789303959,0.51197377,82.009,81.988,0.49174849]
[1770789307970,3.65575496,82.0,81.981,0.49174849]
[1770789308169,0.51197377,81.999,81.981,0.49174849]
[1770789309071,0.51197377,81.999,81.977,12.19845741]
[1770789309268,0.51197377,81.999,81.978,0.49174849]
[1770789311165,0.51197377,81.999,81.98,12.19796252]
[1770789312250,0.51197377,82.016,81.981,0.49174849]
[1770789312455,0.51197377,82.021,81.991,0.49174849]
[1770789312752,34.38,82.027,82.001,0.49174849]
[1770789313158,0.51197377,82.037,82.002,42.6818858]
[1770789313359,0.51197377,82.037,82.003,0.49174849]
[1770789314363,0.51197377,82.029,82.003,0.49174849]
[1770789317788,0.51197377,82.029,82.005,0.49174849]
[1770789319686,0.51197377,82.029,82.006,12.19422969]
[1770789319880,0.51197377,82.029,82.007,0.49174849]
[1770789321471,0.48232678,82.019,81.928,48.82294267]
[1770789321667,42.66835714,82.028,81.951,12.20241363]
[1770789321668,0.48232678,81.979,81.951,12.20241363]
[1770789321862,0.48232678,82.009,81.97,3.65575496]
[1770789322068,0.48232678,82.018,81.99,3.65575496]
[1770789322477,12.19092389,82.029,81.96,3.65575496]
[1770789322478,0.48232678,82.029,82.0,3.65575496]
[1770789323487,0.48232678,82.029,82.002,0.40330524]
[1770789324872,0.48232678,82.029,82.003,12.1946758]
[1770789325185,0.48232678,82.029,82.004,0.40226682]
[1770789325387,0.49904858,82.042,82.011,0.40175654]
[1770789325683,0.49904858,82.029,81.998,12.19533577]
[1770789325894,0.49904858,82.029,82.001,0.40175654]
[1770789327283,0.49904858,82.029,82.003,12.1946758]
[1770789327667,0.49904858,82.029,82.004,0.4007535]
[1770789327868,0.49904858,82.034,82.011,0.4007535]
[1770789329698,0.49904858,82.034,82.012,12.19333756]
[1770789330287,0.49904858,82.034,82.012,12.59262928]
[1770789330492,0.49904858,82.034,82.012,12.19333756]
[1770789330799,0.49904858,82.034,82.009,0.39929172]
[1770789332477,0.49904858,82.042,82.011,0.39834498]
[1770789332798,0.49904858,82.066,82.031,0.39834498]
[1770789332978,0.49904858,82.066,82.012,12.19333756]
[1770789332979,0.49904858,82.066,82.041,0.39834498]
[1770789333173,34.11684209,82.08,82.041,0.39834498]
[1770789333174,0.49904858,82.077,82.041,0.39834498]
[1770789333596,0.49904858,82.059,82.021,0.39787974]
[1770789334995,0.49904858,82.059,82.022,12.19185096]
[1770789335299,0.49904858,82.059,82.023,0.39696524]
[1770789335799,0.49904858,82.059,82.03,4.05556156]
[1770789336000,0.49904858,82.059,82.031,0.39696524]
[1770789338180,0.49904858,82.059,82.032,12.19036473]
[1770789338384,0.49904858,82.059,82.032,12.58599724]
[1770789338585,0.49904858,82.059,82.033,0.39563251]
[1770789340101,0.49904858,82.058,82.033,0.39563251]
[1770789340483,0.49904858,82.058,82.034,12.19006753]
[1770789343900,0.49904858,82.058,82.028,0.39351141]
[1770789344098,0.49904858,82.058,82.03,3.65859632]
[1770789344393,0.49904858,82.058,82.03,4.05169801]
[1770789344595,0.49904858,82.058,82.031,0.39310169]
[1770789345099,0.49904858,82.058,82.032,12.19036473]
[1770789348688,0.49904858,82.049,82.007,0.39150935]
[1770789348996,0.49904858,82.049,82.025,0.39150935]
[1770789354298,0.49904858,82.049,82.026,12.19125643]
[1770789354603,0.49790086,82.061,82.03,3.65859632]
[1770789354807,0.49790086,82.061,82.031,0.38889383]
[1770789354994,0.49790086,82.059,82.026,12.19125643]
[1770789355310,0.49790086,82.059,82.027,0.38853715]
[1770789356311,0.49790086,82.059,82.029,0.38818457]
[1770789357892,0.49790086,82.065,82.031,0.38783604]
[1770789358703,0.49790086,82.065,82.033,0.38749151]
[1770789360916,0.49790086,82.059,82.034,12.19006753]
[1770789362213,0.49790086,82.059,82.024,12.19155369]
[1770789362517,0.49790086,82.059,82.024,12.57770621]
[1770789362699,0.49790086,82.059,82.025,0.38615252]
[1770789365012,0.49790086,82.059,82.024,12.19155369]
[1770789365013,0.49790086,82.049,82.021,12.19193425]
[1770789365193,0.49790086,82.039,82.014,12.1929982]
[1770789368715,0.49790086,82.029,82.0,12.57926315]
[1770789369021,0.49790086,82.029,82.0,12.19500661]
[1770789370216,0.49790086,82.029,81.996,12.19571686]
[1770789370398,0.49790086,82.029,81.996,12.57937006]
[1770789371025,0.49790086,82.027,81.996,12.57937006]
[1770789372021,0.49790086,82.027,81.997,0.38335672]
[1770789372915,0.49790086,82.027,81.999,0.38306364]
[1770789374424,0.49790086,82.027,82.001,0.38248754]
[1770789374626,0.49790086,82.019,82.001,0.38248754]
[1770789374841,3.65694066,82.04,81.97,0.38248754]
[1770789374842,0.49790086,82.009,81.97,0.38248754]
[1770789375131,4.15484152,81.99,81.971,12.19943638]
[1770789375298,0.49790086,81.989,81.971,12.19943638]
[1770789375502,0.49790086,81.989,81.966,12.20010803]
[1770789376101,0.49790086,81.989,81.965,0.38220444]
[1770789376303,3.65694066,81.98,81.961,0.3819246]
[1770789376517,0.49790086,81.982,81.961,0.3819246]
[1770789378916,12.1979483,81.981,81.95,0.1]
[1770789379220,12.1979483,81.981,81.951,0.38110421]
[1770789379221,0.49790086,81.973,81.951,0.38110421]
[1770789379428,0.49790086,81.979,81.952,0.38110421]
[1770789381331,0.49005582,81.991,81.954,0.38031176]
[1770789381806,0.49005582,81.989,81.954,0.38031176]
[1770789382830,0.49005582,81.989,81.955,12.20181807]
[1770789383016,0.49005582,81.989,81.956,0.38005365]
[1770789384733,0.49056644,81.995,81.971,0.37929699]
[1770789388217,0.49056644,81.989,81.96,3.66214731]
[1770789388412,0.49056644,81.989,81.961,0.37832805]
[1770789390233,0.49056644,81.989,81.965,0.37786011]
[1770789391722,0.49056644,81.999,81.965,0.37786011]
[1770789392034,0.49056644,81.999,81.971,0.37763017]
[1770789393039,0.49056644,81.999,81.972,0.37740286]
[1770789394241,0.49056644,81.989,81.955,0.37695606]
[1770789394641,0.49056644,81.989,81.962,0.37695606]
[1770789395841,0.49056644,81.999,81.973,0.3767365]
[1770789397547,0.49056644,81.999,81.975,0.37630491]
[1770789398127,0.49056644,81.999,81.974,12.19898992]
[1770789398345,0.49056644,81.999,81.975,0.37609283]
[1770789400637,0.49056644,82.009,81.977,0.37567595]
[1770789401338,0.49056644,82.009,81.95,97.7202592]
[1770789401339,0.49056644,81.999,81.969,0.37547109]
[1770789401536,0.49056644,81.999,81.975,12.19884037]
[1770789401854,0.49056644,81.999,81.975,12.57431146]
[1770789404846,0.49056644,81.999,81.969,0.37487053]
[1770789405146,0.49056644,81.999,81.971,0.37467492]
[1770789405350,0.49056644,82.009,81.971,0.37467492]
[1770789406137,0.49056644,81.979,81.95,12.30244102]
[1770789406344,0.49056644,81.979,81.911,48.83292911]
[1770789406345,0.49056644,81.959,81.927,0.47448156]
[1770789406528,0.49056644,81.967,81.941,0.47448156]
[1770789407346,0.49056644,81.967,81.942,12.20375387]
[1770789407753,0.49056644,81.967,81.942,12.67804429]
[1770789407954,0.49056644,81.967,81.943,0.47429042]
[1770789410854,0.49402111,81.988,81.951,0.47354757]
[1770789412150,3.66214731,81.98,81.951,0.47354757]
[1770789412353,0.49402111,81.979,81.951,0.47354757]
[1770789412858,0.49402111,81.979,81.952,12.20226474]
[1770789413152,0.49402111,81.979,81.953,0.47318882]
[1770789414452,0.49402111,81.979,81.954,12.20196695]
[1770789417142,0.49402111,81.979,81.95,0.47232738]
[1770789417547,0.49402111,81.979,81.951,0.47232738]
[1770789419253,0.49402111,82.0,81.971,0.4719965]
[1770789419450,12.19512195,82.0,81.971,0.4719965]
[1770789419649,30.48496835,82.008,81.971,0.4719965]
[1770789419650,0.49402111,81.999,81.971,0.4719965]
[1770789421055,0.49402111,81.999,81.972,0.4718339]
[1770789421252,0.49402111,81.999,81.971,12.19939012]
[1770789421253,0.49402111,82.008,81.981,0.47167318]
[1770789423771,0.49402111,82.008,81.983,0.47135724]
[1770789427468,0.49402111,82.006,81.983,0.47135724]
[1770789428868,0.49402111,81.999,81.971,12.19943638]
[1770789429556,0.49402111,81.999,81.971,12.66988844]
[1770789431863,0.49402111,81.999,81.972,0.47016401]
[1770789433979,0.49402111,81.999,81.973,12.19913874]
[1770789434184,0.49402111,81.999,81.973,12.66902128]
[1770789434390,0.49402111,81.999,81.974,0.46974423]
[1770789435181,0.49402111,81.999,81.975,12.19884111]
[1770789435881,0.49402111,81.999,81.975,12.66844861]
[1770789436075,0.49402111,81.999,81.976,0.4696075]
[1770789436584,34.02,82.02,81.991,0.46947235]
[1770789436585,0.49402111,82.014,81.991,0.46947235]
[1770789437086,0.49402111,82.009,81.976,0.46947235]
[1770789437273,0.49402111,82.007,81.977,12.66788223]
[1770789437474,0.49402111,82.007,81.978,0.46933874]
[1770789437674,0.49402111,82.007,81.965,30.50078087]
[1770789437675,0.49402111,81.999,81.968,0.46933874]
[1770789438392,0.49402111,81.999,81.969,12.6688012]
[1770789438568,0.49402111,81.999,81.97,0.46920667]
[1770789439084,0.49402111,81.999,81.972,12.66836431]
[1770789439394,0.49402111,81.999,81.973,0.46907612]
[1770789439686,0.49402111,81.997,81.973,0.46907612]
[1770789441471,0.47185265,81.995,81.964,0.46869339]
[1770789441696,0.47185265,81.995,81.951,30.50599278]
[1770789441697,0.47185265,81.989,81.958,12.20123439]
[1770789442390,0.47185265,81.979,81.958,12.20123439]
[1770789442575,0.47185265,81.989,81.963,0.46856874]
[1770789443787,0.47185265,81.995,81.971,0.46844551]
[1770789444782,34.04,82.0,81.971,0.46844551]
[1770789445090,34.53095264,82.0,81.971,0.46844551]
[1770789445588,0.49095264,81.999,81.971,0.46844551]
[1770789445791,0.49095264,81.999,81.973,0.46808427]
[1770789448799,0.49095264,81.999,81.975,0.46773533]
[1770789448973,0.49095264,82.007,81.981,0.46773533]
[1770789449490,0.49095264,82.015,81.981,0.46773533]
[1770789450078,0.49095264,82.009,81.975,0.46762167]
[1770789451297,0.49095264,82.007,81.976,12.1986923]
[1770789451600,0.49095264,82.007,81.947,0.46739827]
[1770789451773,12.19393229,82.008,81.88,0.1]
[1770789451774,0.49095264,81.979,81.955,12.20181066]
[1770789453798,0.49095264,81.979,81.951,12.20241363]
[1770789455296,0.49095264,81.978,81.951,12.20241363]
[1770789455791,0.49095264,81.978,81.951,0.46696666]
[1770789458982,0.49095264,81.978,81.952,12.20226474]
[1770789460708,0.49095264,81.969,81.945,12.20318639]
[1770789461613,0.49095264,81.969,81.931,0.46635551]
[1770789461798,0.49095264,81.967,81.932,0.46635551]
[1770789462305,0.49095264,81.967,81.934,12.20480403]
[1770789462807,3.66154645,81.96,81.934,12.20480403]
[1770789462995,0.49095264,81.959,81.934,12.20480403]
[1770789463196,0.49095264,81.959,81.935,0.46616102]
[1770789463602,0.49095264,81.973,81.941,0.46616102]
[1770789463782,0.49095264,81.973,81.943,0.46616102]
[1770789464687,0.49095264,81.969,81.943,0.46616102]
[1770789469111,0.49095264,81.969,81.944,12.20345601]
[1770789469413,0.49095264,81.967,81.937,0.46560382]
[1770789469587,0.49095264,81.967,81.922,30.51652025]
[1770789469588,0.49095264,81.967,81.94,0.46560382]
[1770789470207,12.19988288,81.968,81.94,0.46560382]
[1770789470510,3.66452247,81.97,81.945,0.46542651]
[1770789470803,0.46496804,81.973,81.945,0.46542651]
[1770789471312,0.46496804,81.973,81.947,0.46533937]
[1770789473017,4.12949051,81.97,81.947,0.46533937]
[1770789473202,0.46496804,81.969,81.947,0.46533937]
[1770789479437,0.46496804,81.969,81.942,0.46467739]
[1770789479713,0.46496804,81.967,81.934,0.46467739]
[1770789479911,0.46496804,81.959,81.934,0.46467739]
[1770789480120,0.46496804,81.959,81.931,12.20539234]
[1770789480298,0.46496804,81.949,81.925,12.20617399]
[1770789480495,0.46496804,81.949,81.929,12.20568319]
[1770789480798,0.46496804,81.949,81.929,12.67028205]
[1770789481120,0.46496804,81.949,81.93,0.46452123]
[1770789482190,0.46496804,81.961,81.932,0.46452123]
[1770789483112,0.46496804,81.959,81.932,0.46452123]
[1770789483607,3.66452247,81.97,81.932,0.46452123]
[1770789483800,0.46496804,81.971,81.941,0.46436865]
[1770789484217,0.46496804,81.971,81.943,0.46429366]
[1770789484718,3.66452247,81.97,81.943,0.46429366]
[1770789484896,0.46496804,81.969,81.943,0.46429366]
[1770789486419,0.46496804,81.969,81.944,12.20345601]
[1770789488020,0.46496804,81.959,81.937,12.20449857]
[1770789492017,0.46496804,81.959,81.937,12.66829093]
[1770789493806,0.46496804,81.959,81.937,12.20449857]
[1770789494009,0.46496804,81.959,81.938,0.46365642]
[1770789494417,0.46496804,81.959,81.939,12.20420068]
[1770789496124,0.46496804,81.964,81.941,0.46352358]
[1770789496422,0.46496804,81.964,81.942,12.20375387]
[1770789496608,0.46496804,81.964,81.943,0.4634583]
[1770789497411,0.46496804,81.964,81.942,12.20375387]
[1770789497827,0.46496804,81.964,81.938,0.46339378]
[1770789499133,0.46496804,81.964,81.941,12.20376067]
[1770789502432,0.46496804,81.964,81.941,0.46302189]
[1770789505038,0.46496804,81.964,81.942,12.20375387]
[1770789505722,0.46496804,81.964,81.882,0.46278791]
[1770789505924,0.47000645,81.929,81.895,0.46278791]
[1770789506239,8.79484749,81.96,81.911,0.46273108]
[1770789506428,0.47000645,81.949,81.912,0.46273108]
[1770789506832,0.47000645,81.949,81.921,0.46273108]
[1770789507137,0.47000645,81.949,81.92,3.66452247]
[1770789507138,0.47000645,81.949,81.931,0.46273108]
[1770789507516,0.47000645,81.954,81.931,0.46273108]
[1770789507717,0.47000645,81.975,81.94,4.12719738]
[1770789507937,0.47000645,81.975,81.94,3.66452247]
[1770789508134,0.47000645,81.975,81.941,0.46261938]
[1770789508335,0.47000645,81.975,81.951,0.46261938]
[1770789509535,0.47000645,81.975,81.952,0.46256449]
[1770789510627,0.47000645,81.973,81.95,3.66317202]
[1770789510830,0.47000645,81.973,81.946,0.46251023]
[1770789511054,0.47000645,81.973,81.951,0.46251023]
[1770789514741,0.47000645,81.971,81.951,0.46251023]
[1770789515044,0.47000645,81.971,81.942,0.46229935]
[1770789516352,0.47000645,81.971,81.944,0.46219751]
[1770789517229,0.47000645,81.983,81.951,0.46214747]
[1770789517435,0.47000645,81.983,81.961,0.46214747]
[1770789517930,0.47000645,81.983,81.951,0.46214747]
[1770789518825,0.47000645,81.983,81.953,0.462098]
[1770789521035,0.47000645,81.979,81.944,12.20342911]
[1770789521961,0.47000645,81.979,81.943,0.46200075]
[1770789522547,0.47000645,81.979,81.915,0.46190573]
[1770789522727,0.47000645,81.977,81.915,0.46190573]
[1770789522925,0.47000645,81.949,81.915,0.46190573]
[1770789523124,0.47000645,81.947,81.915,0.46190573]
[1770789524329,0.47000645,81.945,81.915,0.46190573]
[1770789524735,0.47000645,81.945,81.917,0.46181288]
[1770789526636,0.47000645,81.943,81.917,0.46181288]
[1770789530432,0.47000645,81.943,81.918,12.20732928]
[1770789530636,0.47000645,81.943,81.919,0.46150429]
[1770789532657,0.47289187,81.941,81.919,0.46150429]
[1770789534149,12.20405174,81.94,81.919,0.46150429]
[1770789534456,0.47289187,81.939,81.912,0.46133884]
[1770789534838,0.47289187,81.939,81.915,12.20769883]
[1770789535039,0.47289187,81.939,81.916,0.46133884]
[1770789535658,0.47289187,81.939,81.915,12.66899749]
[1770789535858,0.47289187,81.939,81.916,0.46129866]
[1770789541848,0.47289187,81.951,81.921,0.46106707]
[1770789544375,12.20256253,81.95,81.921,0.46106707]
[1770789544555,0.47289187,81.949,81.921,0.46106707]
[1770789544877,0.47289187,81.949,81.922,0.46095716]
[1770789546177,0.47289187,81.949,81.931,0.46092137]
[1770789546776,0.47289187,81.947,81.922,0.46088598]
[1770789547349,0.47289187,81.947,81.925,12.20624542]
[1770789547748,0.47289187,81.947,81.925,12.66709642]
[1770789549079,0.47289187,81.947,81.92,3.66317202]
[1770789549080,0.47289187,81.947,81.926,0.46081642]
[1770789550259,0.47289187,81.947,81.926,12.66689229]
[1770789551462,0.47289187,81.947,81.927,0.46071505]
[1770789554075,0.47289187,81.947,81.929,0.46064939]
[1770789554270,0.47289187,81.955,81.931,0.46061713]
[1770789554578,0.47289187,81.959,81.941,0.46061713]
[1770789555474,0.47289187,81.981,81.951,0.46058524]
[1770789556680,0.47289187,81.979,81.951,0.46058524]
[1770789557782,0.47289187,81.979,81.937,12.20444786]
[1770789557983,0.47289187,81.979,81.942,0.46052255]